bitfinex-derivatives/quotes_SOLF0:USTF0_20250803
["timestamp","ask_amount","ask_price","bid_price","bid_amount"]
[1754206312475,117.62547007,161.34,161.32,3.33]
[1754206312683,113.1,161.34,161.33,3.33]
[1754206313180,10.72357007,161.36,161.33,3.33]
[1754206313482,113.12,161.35,161.33,3.33]
[1754206314080,4.52547007,161.36,161.33,3.33]
[1754206314384,117.64547007,161.36,161.33,3.33]
[1754206314779,117.64547007,161.36,161.35,3.33]
[1754206315478,121.05547007,161.36,161.35,3.33]
[1754206315782,116.53,161.36,161.35,3.33]
[1754206315981,113.12,161.36,161.35,3.33]
[1754206318485,116.53,161.36,161.35,3.33]
[1754206321394,116.53,161.36,161.35,9.5284]
[1754206321886,116.53,161.36,161.35,3.33]
[1754206326790,3.41,161.36,161.35,3.33]
[1754206332088,7.93547007,161.36,161.35,3.33]
[1754206332500,3.41,161.36,161.35,3.33]
[1754206332694,7.93547007,161.36,161.35,3.33]
[1754206333695,4.52547007,161.36,161.32,16.33547007]
[1754206333906,3.49,161.35,161.33,3.37]
[1754206335997,4.52547007,161.37,161.33,9.5691]
[1754206336200,3.49,161.36,161.34,3.37]
[1754206336398,3.49,161.36,161.35,3.37]
[1754206339306,113.48,161.38,161.35,3.37]
[1754206339505,3.49,161.37,161.35,3.37]
[1754206340395,3.49,161.36,161.35,3.37]
[1754206340801,3.49,161.36,161.35,9.5684]
[1754206346210,3.49,161.36,161.35,3.37]
[1754206350607,3.49,161.36,161.34,3.37]
[1754206352312,3.19,161.35,161.34,3.37]
[1754206358418,3.19,161.35,161.34,9.5688]
[1754206367833,3.19,161.35,161.34,3.37]
[1754206369437,3.19,161.35,161.34,9.5688]
[1754206387641,4.52547007,161.41,161.37,3.22]
[1754206387842,3.33,161.4,161.37,3.22]
[1754206388337,3.33,161.39,161.37,3.22]
[1754206388741,7.85547007,161.39,161.37,9.4175]
[1754206388942,3.33,161.38,161.37,9.4175]
[1754206390444,7.85547007,161.39,161.37,6.1975]
[1754206390645,7.85547007,161.39,161.38,3.22]
[1754206391445,3.33,161.39,161.37,12.6]
[1754206391748,3.33,161.39,161.38,3.22]
[1754206400349,7.85547007,161.39,161.38,3.22]
[1754206401256,3.33,161.39,161.38,3.22]
[1754206401454,3.33,161.38,161.37,12.6]
[1754206401757,3.33,161.38,161.24,10.80753863]
[1754206401758,3.33,161.37,161.32,3.22]
[1754206401960,3.33,161.33,161.32,3.22]
[1754206402455,61.9637345,161.37,161.32,3.22]
[1754206402654,61.9637345,161.37,161.35,3.22]
[1754206402854,3.33,161.4,161.37,3.22]
[1754206403152,3.33,161.39,161.37,3.22]
[1754206403760,3.33,161.39,161.37,9.4173]
[1754206404057,3.33,161.39,161.38,3.22]
[1754206404950,3.33,161.42,161.41,3.22]
[1754206412586,119.30721738,161.43,161.42,3.2]
[1754206412888,122.64721738,161.43,161.42,3.2]
[1754206413790,122.64721738,161.43,161.4,3.2]
[1754206413982,3.34,161.42,161.4,3.2]
[1754206414287,3.34,161.41,161.4,3.2]
[1754206414484,3.34,161.42,161.4,9.3963]
[1754206414683,122.64721738,161.43,161.41,3.2]
[1754206415184,119.30721738,161.43,161.41,3.2]
[1754206415389,3.34,161.42,161.41,3.2]
[1754206416280,3.34,161.42,161.41,9.3961]
[1754206419994,122.64721738,161.43,161.42,3.2]
[1754206429904,119.30721738,161.43,161.42,3.2]
[1754206430805,122.64721738,161.43,161.42,3.2]
[1754206433004,3.34,161.42,161.39,3.2]
[1754206433200,113.62,161.41,161.39,7.70450937]
[1754206433401,113.62,161.41,161.4,9.3965]
[1754206434407,116.96,161.41,161.4,3.2]
[1754206435911,13.25172675,161.43,161.4,6.1963]
[1754206436111,5.40721738,161.43,161.42,3.2]
[1754206436310,8.74721738,161.43,161.42,3.2]
[1754206436612,13.25172675,161.43,161.42,3.2]
[1754206436907,13.25172675,161.43,161.4,6.1962]
[1754206437109,113.68,161.42,161.41,3.2]
[1754206437310,117.02,161.42,161.41,3.2]
[1754206439905,3.34,161.41,161.39,3.2]
[1754206440113,118.14450937,161.4,161.38,15.63]
[1754206440306,118.12450937,161.4,161.39,3.2]
[1754206440605,121.46450937,161.4,161.39,3.2]
[1754206441015,3.34,161.39,161.34,3.2]
[1754206441311,7.84450937,161.37,161.34,3.2]
[1754206441609,7.84450937,161.37,161.36,3.27]
[1754206442307,4.50450937,161.37,161.36,3.27]
[1754206443418,4.50450937,161.37,161.36,9.468]
[1754206443905,7.69450937,161.37,161.36,3.27]
[1754206444607,7.69450937,161.37,161.31,5.17166763]
[1754206444608,3.19,161.36,161.31,5.17166763]
[1754206444817,3.19,161.33,161.32,3.27]
[1754206445005,3.19,161.33,161.29,5.17166763]
[1754206445006,4.50450937,161.33,161.29,3.27]
[1754206445206,7.69450937,161.31,161.29,3.27]
[1754206445818,7.69450937,161.31,161.29,9.4707]
[1754206446017,7.69450937,161.31,161.3,3.27]
[1754206446526,116.93,161.32,161.3,9.4703]
[1754206446815,121.43450937,161.32,161.31,3.27]
[1754206448311,118.24450937,161.32,161.3,3.27]
[1754206448505,3.19,161.31,161.3,3.27]
[1754206448908,3.19,161.3,161.29,9.4707]
[1754206449319,117.03,161.3,161.29,3.27]
[1754206449817,117.03,161.3,161.29,9.4707]
[1754206455922,113.84,161.3,161.29,9.4707]
[1754206457422,113.84,161.3,161.24,7.05047994]
[1754206457423,113.78,161.32,161.31,9.4696]
[1754206458619,116.97,161.32,161.31,9.4696]
[1754206460018,113.78,161.32,161.31,9.4696]
[1754206460319,113.74,161.33,161.32,9.4694]
[1754206461814,116.93,161.33,161.32,9.4694]
[1754206464125,3.19,161.33,161.32,9.4694]
[1754206464319,116.89,161.34,161.33,6.1992]
[1754206464623,113.66,161.36,161.33,3.27]
[1754206464825,3.19,161.35,161.33,3.27]
[1754206465014,3.19,161.35,161.26,5.17166763]
[1754206465015,3.19,161.35,161.34,9.4685]
[1754206466926,3.19,161.35,161.34,3.27]
[1754206468925,3.19,161.35,161.34,9.4688]
[1754206473827,3.19,161.35,161.34,3.27]
[1754206474631,3.19,161.35,161.33,9.5391]
[1754206474829,3.19,161.35,161.34,9.5388]
[1754206475329,3.19,161.35,161.34,3.34]
[1754206478328,3.19,161.35,161.34,9.5388]
[1754206478927,3.19,161.35,161.34,3.34]
[1754206480730,7.69917209,161.35,161.34,3.34]
[1754206482130,7.87917209,161.35,161.34,3.34]
[1754206483433,3.37,161.35,161.34,9.5388]
[1754206483726,7.87917209,161.35,161.34,9.5388]
[1754206484729,7.87917209,161.35,161.34,3.34]
[1754206488238,3.37,161.35,161.34,9.5388]
[1754206488435,7.87917209,161.35,161.34,9.5388]
[1754206490331,7.87917209,161.35,161.34,3.34]
[1754206496643,121.29917209,161.35,161.34,3.34]
[1754206499938,117.92917209,161.35,161.33,3.34]
[1754206500133,3.37,161.34,161.33,3.34]
[1754206500949,3.37,161.34,161.33,9.5391]
[1754206501243,121.29917209,161.35,161.33,6.1991]
[1754206501448,121.29917209,161.35,161.34,3.34]
[1754206506746,7.87917209,161.35,161.34,9.5388]
[1754206506947,121.33917209,161.35,161.34,3.34]
[1754206516046,117.96917209,161.35,161.33,6.199]
[1754206516254,3.32,161.34,161.33,6.199]
[1754206516452,3.32,161.34,161.33,3.19]
[1754206517751,3.32,161.34,161.32,6.1994]
[1754206517950,117.86917209,161.33,161.3,3.19]
[1754206518148,4.50917209,161.31,161.3,3.19]
[1754206518452,121.20917209,161.31,161.3,3.19]
[1754206520855,121.20917209,161.31,161.3,9.3903]
[1754206521057,121.20917209,161.31,161.3,3.19]
[1754206523054,121.20917209,161.31,161.27,6.2014]
[1754206523252,3.32,161.3,161.28,3.19]
[1754206523458,113.38,161.29,161.28,3.19]
[1754206523757,116.7,161.29,161.28,3.19]
[1754206524156,116.7,161.29,161.28,9.3911]
[1754206524455,121.20917209,161.29,161.28,9.3911]
[1754206527552,117.88917209,161.29,161.28,9.3911]
[1754206528958,121.20917209,161.29,161.28,9.3911]
[1754206532960,121.20917209,161.29,161.28,3.19]
[1754206534456,121.20917209,161.29,161.28,9.3911]
[1754206539266,113.38,161.29,161.28,9.3911]
[1754206539567,7.78917209,161.31,161.3,3.38]
[1754206539865,121.06917209,161.31,161.3,3.38]
[1754206541967,116.56,161.31,161.3,3.38]
[1754206542566,3.28,161.31,161.3,3.38]
[1754206542873,116.56,161.31,161.3,3.38]
[1754206543165,116.56,161.31,161.3,9.5803]
[1754206543769,116.56,161.31,161.3,6.2003]
[1754206543970,116.56,161.31,161.3,9.5803]
[1754206545469,116.52,161.31,161.3,9.5803]
[1754206546372,7.78917209,161.35,161.3,4.50917209]
[1754206546667,116.54,161.34,161.32,3.38]
[1754206547166,3.28,161.33,161.32,3.38]
[1754206552372,7.78917209,161.33,161.32,3.38]
[1754206556974,7.78917209,161.33,161.3,9.5802]
[1754206557174,3.28,161.31,161.26,5.17166763]
[1754206557471,4.50917209,161.28,161.26,3.38]
[1754206557774,7.78917209,161.28,161.26,3.38]
[1754206558373,3.28,161.28,161.26,3.38]
[1754206558569,117.66917209,161.29,161.27,9.5813]
[1754206558774,120.94917209,161.29,161.28,3.38]
[1754206559872,120.94917209,161.29,161.28,9.5811]
[1754206559873,117.66917209,161.29,161.28,9.5811]
[1754206561977,121.10917209,161.29,161.28,9.5811]
[1754206562474,117.66917209,161.29,161.28,9.5811]
[1754206562871,121.10917209,161.29,161.28,9.5811]
[1754206564174,116.6,161.29,161.28,9.5811]
[1754206564972,113.16,161.29,161.28,9.5811]
[1754206565372,121.10917209,161.31,161.3,6.2003]
[1754206565573,121.10917209,161.31,161.3,9.5003]
[1754206565774,116.6,161.31,161.3,9.5003]
[1754206570082,116.6,161.31,161.3,3.3]
[1754206572083,121.10917209,161.31,161.3,3.3]
[1754206579896,116.6,161.31,161.3,9.5003]
[1754206580091,121.10917209,161.31,161.3,9.5003]
[1754206580486,4.50917209,161.34,161.32,3.3]
[1754206580693,116.48,161.33,161.32,3.3]
[1754206581095,4.50917209,161.36,161.32,3.3]
[1754206581294,116.52,161.35,161.32,3.3]
[1754206581791,116.52,161.35,161.33,6.1991]
[1754206581992,116.52,161.35,161.34,3.3]
[1754206582186,121.02917209,161.35,161.34,3.3]
[1754206587306,116.52,161.35,161.34,9.4988]
[1754206588107,113.08,161.35,161.34,9.4988]
[1754206588607,3.44,161.37,161.35,3.3]
[1754206588902,116.44,161.37,161.35,3.3]
[1754206589100,116.44,161.37,161.36,6.198]
[1754206589298,116.44,161.37,161.36,9.498]
[1754206590701,120.94917209,161.37,161.36,3.3]
[1754206591908,3.38,161.36,161.35,3.51]
[1754206592206,3.38,161.36,161.34,9.7087]
[1754206592500,3.38,161.36,161.34,6.1987]
[1754206592702,3.38,161.36,161.35,3.51]
[1754206593097,3.38,161.36,161.35,9.7084]
[1754206593806,117.50917209,161.37,161.36,3.51]
[1754206594006,117.50917209,161.37,161.36,9.708]
[1754206594307,120.88917209,161.37,161.36,9.708]
[1754206594808,116.38,161.37,161.36,9.708]
[1754206597110,116.38,161.37,161.36,3.51]
[1754206598711,116.38,161.37,161.36,9.708]
[1754206600316,113.0,161.37,161.36,9.708]
[1754206600507,7.88917209,161.39,161.38,9.7072]
[1754206600706,116.4,161.39,161.38,9.7072]
[1754206601512,113.02,161.39,161.38,9.7072]
[1754206601714,7.88917209,161.41,161.4,6.1965]
[1754206601913,116.38,161.41,161.4,9.7065]
[1754206603110,113.0,161.41,161.4,9.7065]
[1754206603311,116.38,161.41,161.4,9.7065]
[1754206605113,3.38,161.41,161.4,9.7065]
[1754206605416,112.98,161.42,161.41,3.51]
[1754206607219,116.36,161.42,161.41,9.7061]
[1754206609614,5.40721738,161.43,161.42,9.7057]
[1754206610921,8.78721738,161.43,161.42,9.7057]
[1754206615129,5.40721738,161.43,161.42,9.7057]
[1754206620028,1.738e-05,161.43,161.42,9.7057]
[1754206625036,1.738e-05,161.43,161.42,14.21487209]
[1754206630835,6.97242624,161.58,161.49,3.25]
[1754206631137,4.50917209,161.52,161.49,3.25]
[1754206631535,4.50917209,161.52,161.48,4.50917209]
[1754206631736,4.50917209,161.52,161.48,7.75917209]
[1754206632640,2.09,161.51,161.48,7.75917209]
[1754206633240,2.09,161.51,161.48,13.95227209]
[1754206633742,2.09,161.51,161.48,9.4431]
[1754206634243,2.09,161.51,161.49,3.25]
[1754206634737,2.09,161.51,161.48,9.4431]
[1754206634936,2.09,161.49,161.48,9.4431]
[1754206637149,2.09,161.49,161.47,3.25]
[1754206637838,4.50917209,161.48,161.46,3.25]
[1754206638038,2.09,161.47,161.44,4.50917209]
[1754206638241,2.09,161.47,161.46,3.25]
[1754206638846,2.09,161.48,161.46,3.25]
[1754206640248,2.09,161.48,161.46,9.4438]
[1754206640546,2.09,161.48,161.47,3.25]
[1754206641045,2.09,161.48,161.47,9.4438]
[1754206641246,6.59917209,161.49,161.47,9.4438]
[1754206641445,6.59917209,161.49,161.48,3.25]
[1754206647146,2.09,161.49,161.48,3.25]
[1754206647452,4.50917209,161.49,161.48,9.4434]
[1754206648744,2.09,161.53,161.5,3.25]
[1754206650250,2.09,161.53,161.52,3.25]
[1754206651053,6.59917209,161.53,161.52,3.25]
[1754206651647,4.50917209,161.53,161.52,3.25]
[1754206652244,115.0,161.54,161.52,3.25]
[1754206652448,119.50917209,161.54,161.52,3.25]
[1754206653046,115.0,161.54,161.52,3.25]
[1754206653255,119.50917209,161.54,161.52,3.25]
[1754206654447,117.40917209,161.54,161.52,3.25]
[1754206654654,2.1,161.53,161.52,3.25]
[1754206655559,119.50917209,161.54,161.52,3.25]
[1754206656052,62.38502978,161.55,161.53,3.21]
[1754206656261,113.26,161.56,161.53,3.21]
[1754206656447,117.76917209,161.56,161.53,3.21]
[1754206656858,2.1,161.55,161.53,3.21]
[1754206658554,4.50917209,161.56,161.53,3.21]
[1754206658757,2.1,161.54,161.53,3.21]
[1754206659056,2.1,161.55,161.52,3.21]
[1754206659563,2.1,161.54,161.52,3.21]
[1754206660355,2.1,161.54,161.53,3.21]
[1754206661052,4.50917209,161.55,161.53,3.21]
[1754206661053,2.1,161.55,161.53,3.21]
[1754206661259,6.60917209,161.55,161.53,3.21]
[1754206661565,2.1,161.54,161.53,3.21]
[1754206661957,6.60917209,161.55,161.53,3.21]
[1754206665267,4.50917209,161.56,161.54,3.21]
[1754206666258,4.50917209,161.59,161.54,7.71917209]
[1754206666460,2.1,161.58,161.55,3.21]
[1754206666656,4.50917209,161.57,161.55,3.21]
[1754206666860,6.60917209,161.57,161.55,3.21]
[1754206667166,2.1,161.56,161.55,3.21]
[1754206667568,6.60917209,161.57,161.56,3.21]
[1754206667763,4.50917209,161.57,161.56,3.21]
[1754206668569,6.60917209,161.57,161.56,3.21]
[1754206671374,2.1,161.57,161.56,3.21]
[1754206671878,6.1893,161.59,161.56,9.4003]
[1754206672075,6.60917209,161.58,161.57,3.21]
[1754206672580,12.79877209,161.58,161.57,3.21]
[1754206673976,8.2896,161.58,161.57,3.21]
[1754206674278,12.79877209,161.58,161.57,3.21]
[1754206674477,6.60917209,161.58,161.57,3.21]
[1754206675277,2.1,161.58,161.57,3.21]
[1754206675476,6.60917209,161.58,161.57,3.21]
[1754206676380,4.50917209,161.59,161.57,3.21]
[1754206676569,8.2889,161.6,161.57,3.21]
[1754206676770,4.50917209,161.59,161.57,3.21]
[1754206678280,115.65,161.61,161.58,3.21]
[1754206678578,120.15917209,161.61,161.58,3.21]
[1754206679684,4.50917209,161.6,161.58,3.21]
[1754206679875,6.59917209,161.6,161.58,3.21]
[1754206680177,4.50917209,161.6,161.58,3.21]
[1754206680378,118.06917209,161.61,161.58,9.3995]
[1754206680579,118.06917209,161.61,161.59,3.21]
[1754206680880,4.50917209,161.61,161.59,3.21]
[1754206682379,2.07,161.6,161.59,3.21]
[1754206682578,2.07,161.6,161.56,3.48]
[1754206682780,4.50917209,161.58,161.56,3.48]
[1754206682978,4.50917209,161.59,161.56,9.6703]
[1754206683179,4.50917209,161.59,161.57,3.48]
[1754206683783,6.57917209,161.59,161.57,3.48]
[1754206684086,12.76837209,161.59,161.57,3.48]
[1754206684282,6.57917209,161.59,161.57,3.48]
[1754206687387,8.2592,161.59,161.57,3.48]
[1754206687588,4.50917209,161.58,161.57,3.48]
[1754206692286,8.2592,161.59,161.57,3.48]
[1754206692492,4.50917209,161.58,161.57,3.48]
[1754206694490,6.57917209,161.58,161.57,3.48]
[1754206694783,2.07,161.57,161.55,3.48]
[1754206694990,6.57917209,161.56,161.55,3.48]
[1754206695192,4.50917209,161.56,161.55,3.48]
[1754206696490,6.57917209,161.56,161.55,3.48]
[1754206697294,12.76947209,161.56,161.55,3.48]
[1754206700496,6.57917209,161.56,161.55,3.48]
[1754206701099,4.50917209,161.56,161.55,3.48]
[1754206702000,2.07,161.57,161.55,3.48]
[1754206702300,4.50917209,161.56,161.55,3.48]
[1754206705693,4.50917209,161.57,161.55,9.6707]
[1754206705900,4.50917209,161.57,161.56,3.48]
[1754206709808,2.07,161.58,161.56,3.48]
[1754206710009,4.50917209,161.57,161.56,3.48]
[1754206710812,2.07,161.58,161.56,3.48]
[1754206711009,4.50917209,161.57,161.56,3.48]
[1754206711312,6.57917209,161.57,161.56,3.48]
[1754206713314,4.50917209,161.57,161.56,3.48]
[1754206713812,2.1,161.59,161.57,3.23]
[1754206714112,4.50917209,161.58,161.57,3.23]
[1754206714314,6.60917209,161.58,161.57,3.23]
[1754206718112,2.1,161.58,161.57,3.23]
[1754206718411,6.60917209,161.58,161.57,3.23]
[1754206719414,4.50917209,161.58,161.57,3.23]
[1754206722720,4.50917209,161.58,161.57,9.4199]
[1754206723409,4.50917209,161.59,161.58,9.4196]
[1754206723808,2.1,161.61,161.58,9.4196]
[1754206724018,4.50917209,161.6,161.59,3.23]
[1754206724314,6.60917209,161.6,161.59,3.23]
[1754206724818,4.50917209,161.6,161.59,3.23]
[1754206725018,2.1,161.61,161.59,9.4191]
[1754206725218,4.50917209,161.6,161.59,6.1891]
[1754206725817,4.50917209,161.6,161.59,9.4191]
[1754206729212,2.1,161.62,161.6,3.23]
[1754206729415,6.60917209,161.61,161.6,3.23]
[1754206731122,2.1,161.6,161.59,3.23]
[1754206731323,6.60917209,161.6,161.59,3.23]
[1754206732618,2.1,161.6,161.59,3.23]
[1754206732824,6.60917209,161.6,161.59,3.23]
[1754206734925,2.1,161.59,161.57,3.23]
[1754206735126,4.50917209,161.58,161.57,9.4199]
[1754206736017,4.50917209,161.58,161.57,3.23]
[1754206738232,6.1885,161.61,161.57,3.23]
[1754206738525,4.50917209,161.59,161.57,3.23]
[1754206740225,2.1,161.6,161.57,3.23]
[1754206740529,4.50917209,161.59,161.57,3.23]
[1754206740824,6.60917209,161.59,161.57,3.23]
[1754206741027,4.50917209,161.59,161.58,3.23]
[1754206741922,6.59917209,161.59,161.58,3.23]
[1754206742828,4.50917209,161.59,161.58,3.23]
[1754206743726,6.59917209,161.59,161.58,3.23]
[1754206745233,4.50917209,161.59,161.58,3.23]
[1754206752229,2.09,161.6,161.58,3.23]
[1754206752431,4.50917209,161.59,161.58,3.23]
[1754206756630,4.50917209,161.59,161.58,6.1896]
[1754206756836,4.50917209,161.59,161.58,9.4796]
[1754206757036,2.09,161.6,161.58,9.4796]
[1754206757236,4.50917209,161.59,161.58,9.4796]
[1754206758939,6.97242624,161.64,161.56,4.50917209]
[1754206759139,4.50917209,161.62,161.59,3.29]
[1754206759830,4.50917209,161.62,161.6,6.1885]
[1754206760027,4.50917209,161.62,161.61,3.29]
[1754206760536,4.50917209,161.62,161.61,9.4784]
[1754206760838,4.50917209,161.62,161.61,3.29]
[1754206762426,76.42502734,161.65,161.61,6.1884]
[1754206762746,6.60917209,161.64,161.63,3.29]
[1754206762934,6.60917209,161.64,161.62,3.29]
[1754206763235,2.1,161.63,161.62,3.29]
[1754206767136,6.60917209,161.63,161.62,3.29]
[1754206767534,4.50917209,161.64,161.58,4.50917209]
[1754206767737,4.50917209,161.64,161.59,3.29]
[1754206768944,4.50917209,161.64,161.6,6.1885]
[1754206769132,4.50917209,161.64,161.61,3.29]
[1754206769434,6.60917209,161.64,161.61,3.29]
[1754206770337,1.07714927,161.66,161.6,4.50917209]
[1754206770541,4.50917209,161.65,161.61,3.29]
[1754206770734,6.60917209,161.65,161.61,3.29]
[1754206771342,6.60917209,161.65,161.61,9.4783]
[1754206771534,2.08,161.64,161.61,3.29]
[1754206772639,1.07714927,161.66,161.61,3.29]
[1754206772843,6.58917209,161.63,161.61,3.29]
[1754206774548,2.08,161.64,161.61,3.29]
[1754206774740,4.50917209,161.63,161.61,3.29]
[1754206775943,4.50917209,161.63,161.61,3.48]
[1754206776144,4.50917209,161.63,161.62,3.48]
[1754206776541,2.08,161.62,161.61,3.48]
[1754206776943,2.08,161.62,161.56,3.48]
[1754206777147,4.50917209,161.58,161.56,3.48]
[1754206777750,4.50917209,161.58,161.54,3.48]
[1754206777948,4.50917209,161.58,161.56,3.48]
[1754206778448,4.50917209,161.58,161.56,9.67]
[1754206778648,4.50917209,161.58,161.57,3.48]
[1754206780450,2.08,161.59,161.57,3.48]
[1754206780652,4.50917209,161.58,161.57,3.48]
[1754206782457,187.26229861,161.63,161.58,3.48]
[1754206782662,4.50917209,161.59,161.58,3.48]
[1754206784159,2.08,161.61,161.58,9.6696]
[1754206784356,4.50917209,161.59,161.58,6.1896]
[1754206784858,4.50917209,161.59,161.58,3.48]
[1754206785059,6.58917209,161.59,161.58,3.48]
[1754206786663,4.50917209,161.59,161.47,6.84775833]
[1754206786863,37.23,161.48,161.3,3.48]
[1754206787070,537.13242624,161.47,161.32,4.50917209]
[1754206787267,6.1949,161.44,161.35,9.678]
[1754206787568,118.88917209,161.43,161.38,4.50917209]
[1754206787765,4.50917209,161.46,161.4,4.50917209]
[1754206787956,4.50917209,161.49,161.43,3.48]
[1754206788269,4.50917209,161.46,161.4,4.50917209]
[1754206788566,4.50917209,161.46,161.45,3.48]
[1754206788769,7.03563311,161.49,161.45,3.48]
[1754206788968,121.49563311,161.51,161.47,3.48]
[1754206789266,121.49563311,161.51,161.42,3.48]
[1754206789467,121.49563311,161.51,161.43,6.1949]
[1754206789767,121.49563311,161.51,161.44,3.48]
[1754206790573,121.49563311,161.51,161.44,9.6748]
[1754206790773,121.49563311,161.51,161.45,3.48]
[1754206791967,121.49563311,161.51,161.46,3.48]
[1754206792264,7.03563311,161.49,161.43,6.1952]
[1754206792470,114.46,161.51,161.44,3.48]
[1754206792471,7.03563311,161.47,161.44,3.48]
[1754206793470,7.03563311,161.45,161.43,3.48]
[1754206793865,7.03563311,161.45,161.44,3.48]
[1754206795069,7.03563311,161.45,161.43,6.1951]
[1754206795269,7.03563311,161.45,161.44,9.6749]
[1754206797267,7.03563311,161.47,161.45,9.6745]
[1754206797466,7.03563311,161.47,161.39,7.03563311]
[1754206797670,7.03563311,161.49,161.4,3.48]
[1754206798370,7.03563311,161.49,161.46,9.6739]
[1754206799279,7.03563311,161.49,161.47,3.48]
[1754206801966,7.03563311,161.49,161.46,9.4141]
[1754206802178,7.03563311,161.47,161.46,9.4141]
[1754206802773,114.46,161.51,161.47,3.22]
[1754206802774,7.03563311,161.48,161.47,3.22]
[1754206804276,7.03563311,161.48,161.3,25.65563311]
[1754206804277,7.03563311,161.48,161.39,3.22]
[1754206804473,7.03563311,161.44,161.39,3.22]
[1754206804870,7.03563311,161.44,161.41,6.1959]
[1754206805071,7.03563311,161.44,161.43,3.22]
[1754206806880,7.03563311,161.44,161.4,6.1963]
[1754206807067,7.03563311,161.42,161.4,6.1963]
[1754206807781,3.18,161.41,161.31,7.03563311]
[1754206808081,7.03563311,161.39,161.31,7.03563311]
[1754206808477,10.21563311,161.39,161.29,7.03563311]
[1754206809074,7.03563311,161.37,161.3,3.22]
[1754206809470,7.03563311,161.37,161.35,6.1981]
[1754206809674,7.03563311,161.37,161.36,3.22]
[1754206811577,7.03563311,161.37,161.27,3.22]
[1754206811781,7.03563311,161.35,161.27,3.22]
[1754206812375,7.03563311,161.35,161.32,6.1993]
[1754206812581,7.03563311,161.35,161.33,3.22]
[1754206813281,7.03563311,161.35,161.33,6.1988]
[1754206813481,114.38,161.39,161.24,6.206]
[1754206813482,7.03563311,161.39,161.34,3.22]
[1754206813683,10.21563311,161.41,161.34,3.22]
[1754206814585,10.21563311,161.41,161.38,3.22]
[1754206815280,10.21563311,161.41,161.38,9.4171]
[1754206815584,10.21563311,161.41,161.4,3.22]
[1754206816092,10.21563311,161.41,161.38,9.4171]
[1754206816383,3.18,161.4,161.39,3.22]
[1754206819384,3.18,161.4,161.3,7.03563311]
[1754206819582,10.21563311,161.36,161.31,3.22]
[1754206820790,10.21563311,161.36,161.34,3.22]
[1754206820982,7.03563311,161.36,161.34,3.22]
[1754206821178,7.03563311,161.36,161.35,6.1983]
[1754206821484,7.03563311,161.36,161.35,9.4183]
[1754206821887,7.03563311,161.36,161.35,3.22]
[1754206826288,10.21563311,161.36,161.35,3.22]
[1754206827687,14.56621819,161.36,161.35,3.22]
[1754206828600,3.18,161.35,161.31,3.22]
[1754206828800,10.21563311,161.34,161.31,3.22]
[1754206829494,10.21563311,161.34,161.31,6.1996]
[1754206829806,10.21563311,161.34,161.32,3.22]
[1754206831090,4.36304603,161.33,161.32,3.22]
[1754206831994,4.36304603,161.33,161.3,10.0]
[1754206832201,14.62867914,161.32,161.31,3.5]
[1754206832400,3.23,161.31,161.3,13.5]
[1754206832599,7.59304603,161.31,161.3,13.5]